bitfinex-derivatives/quotes_ETHF0:USTF0_20260203
["timestamp","ask_amount","ask_price","bid_price","bid_amount"]
[1770098303892,4.76697806,2315.5,2314.7,2.42143871]
[1770098304198,0.32546151,2315.6,2314.7,2.42143871]
[1770098304393,2.53870274,2315.8,2314.7,2.42143871]
[1770098304597,2.53870274,2315.8,2314.5,0.00364444]
[1770098304598,7.02947693,2315.8,2315.4,0.21614]
[1770098304898,4.80021456,2315.7,2315.4,0.21614]
[1770098305798,2.29097409,2316.2,2315.4,2.63757871]
[1770098306292,2.37094057,2315.8,2315.4,2.63757871]
[1770098306497,2.29097409,2316.0,2315.5,5.73143088]
[1770098306798,4.90393549,2315.7,2315.0,0.21618]
[1770098306997,2.29097409,2315.8,2315.0,0.21618]
[1770098307197,2.29097409,2315.7,2315.1,5.74044696]
[1770098307699,2.29097409,2315.5,2315.1,5.74044696]
[1770098307895,2.29097409,2315.5,2314.8,4.32]
[1770098308197,2.29097409,2315.5,2314.9,5.69928209]
[1770098308198,9.32045102,2315.5,2314.9,5.69928209]
[1770098308398,4.67456705,2315.4,2314.9,5.69928209]
[1770098308900,2.29097409,2315.6,2314.9,5.69928209]
[1770098309099,9.32045102,2315.6,2314.9,5.69928209]
[1770098309696,9.32045102,2315.6,2314.9,5.91547209]
[1770098310100,7.02947693,2315.6,2315.1,0.21617]
[1770098310398,2.29097409,2315.8,2315.2,0.21616]
[1770098310597,9.32045102,2315.8,2315.2,0.21616]
[1770098311500,2.29097409,2316.6,2315.0,0.81627363]
[1770098311698,2.29097409,2316.5,2315.7,0.21612]
[1770098311996,2.29097409,2316.3,2315.7,0.21612]
[1770098312301,2.29097409,2316.1,2315.7,0.21612]
[1770098312805,9.32045102,2316.1,2315.7,0.21612]
[1770098315302,2.29097409,2316.0,2315.7,0.21612]
[1770098315503,2.29097409,2316.3,2315.8,0.21611]
[1770098315704,2.29097409,2316.3,2315.9,0.2161]
[1770098315904,7.02947693,2316.3,2315.9,0.2161]
[1770098316104,2.29097409,2316.5,2316.0,0.21609]
[1770098316400,14.25534149,2316.4,2316.0,0.21609]
[1770098316704,2.29097409,2316.4,2316.0,0.21609]
[1770098317504,4.29097409,2316.7,2316.0,0.21609]
[1770098317907,4.95526651,2316.6,2316.2,0.21607]
[1770098318106,14.27571753,2316.6,2316.2,0.22140479]
[1770098318308,2.0,2316.7,2316.2,0.22140479]
[1770098318309,2.0,2316.7,2316.3,0.21606]
[1770098318498,8.57177693,2316.7,2316.2,0.00533479]
[1770098318700,1.5423,2316.7,2316.3,5.49384996]
[1770098319107,1.5423,2316.7,2316.6,0.21603]
[1770098320609,2.29097409,2316.6,2316.2,0.00533479]
[1770098320810,2.29097409,2316.5,2316.2,0.22140479]
[1770098321708,1.5423,2316.7,2316.3,0.21606]
[1770098321907,10.86275102,2316.7,2316.3,0.21606]
[1770098323412,10.86275102,2316.7,2316.4,0.21605]
[1770098324411,2.29097409,2316.6,2316.4,0.21605]
[1770098324909,2.29097409,2316.6,2316.2,0.00533479]
[1770098324910,1.5423,2316.7,2316.5,0.21604]
[1770098325110,0.00503457,2316.9,2316.6,0.21603]
[1770098325308,0.00503457,2316.9,2316.7,0.21602]
[1770098326403,9.29121763,2318.1,2316.8,5.67667583]
[1770098326612,7.02947693,2318.0,2317.3,0.21597]
[1770098326911,2.31907225,2317.7,2317.3,0.21597]
[1770098327209,2.31907225,2317.7,2316.8,0.42784533]
[1770098327409,2.29800971,2317.5,2316.8,0.42784533]
[1770098327706,0.00456044,2317.5,2317.3,0.21597]
[1770098327910,2.29800971,2317.8,2317.3,0.21597]
[1770098328112,9.32748664,2317.7,2317.3,0.21597]
[1770098328310,2.29800971,2317.7,2317.3,0.21597]
[1770098328910,2.29097409,2317.5,2317.3,0.21597]
[1770098329113,2.29097409,2317.5,2316.7,0.21602]
[1770098329410,0.00373259,2317.7,2316.8,0.21601]
[1770098329411,2.29097409,2317.3,2316.8,0.21601]
[1770098329706,4.6616545,2317.2,2316.8,0.21601]
[1770098329910,2.29097409,2317.1,2316.8,0.21601]
[1770098330506,2.29097409,2317.1,2315.6,6.43224479]
[1770098330712,9.54624937,2317.0,2315.6,6.43224479]
[1770098331012,2.51677244,2317.0,2316.3,5.5529953]
[1770098331212,2.51677244,2317.0,2316.8,0.21601]
[1770098331408,7.02947693,2317.0,2316.8,0.21601]
[1770098332009,2.51677244,2317.3,2316.9,2.78544669]
[1770098332206,2.53325313,2317.1,2316.9,2.78544669]
[1770098332406,2.53325313,2317.1,2316.2,0.00533479]
[1770098333314,2.53325313,2317.1,2316.8,0.21601]
[1770098337523,6.03755177,2317.0,2316.8,0.21601]
[1770098337919,8.56858089,2317.0,2316.8,0.21601]
[1770098338514,8.12255089,2317.0,2316.8,0.21601]
[1770098338815,2.08169912,2316.9,2316.2,3.87031948]
[1770098339220,4.72560177,2317.0,2316.3,0.45223512]
[1770098339420,0.00373259,2317.7,2316.9,0.216]
[1770098339618,4.72560177,2317.6,2316.9,0.216]
[1770098339819,9.39414106,2317.6,2317.0,5.67172797]
[1770098340919,2.51677244,2317.5,2317.0,5.67172797]
[1770098341519,2.51677244,2317.3,2316.4,2.39445539]
[1770098341729,2.51677244,2317.3,2316.4,0.21605]
[1770098342024,2.51677244,2317.1,2316.4,0.21605]
[1770098342417,5.70812446,2317.0,2316.4,0.21605]
[1770098342820,8.2248969,2317.0,2316.4,0.21605]
[1770098343220,8.2248969,2317.0,2316.5,2.61049539]
[1770098343221,4.72560177,2317.0,2316.5,2.61049539]
[1770098344828,4.72560177,2317.0,2316.7,0.21602]
[1770098345029,7.24237421,2317.0,2316.7,0.21602]
[1770098345227,4.72560177,2317.0,2316.7,0.21602]
[1770098347334,4.59562185,2316.9,2316.3,3.86498469]
[1770098348329,4.59562185,2316.9,2316.7,0.21602]
[1770098349234,42.59105721,2317.5,2316.2,0.00533479]
[1770098349433,4.72560177,2316.8,2316.2,0.00533479]
[1770098349626,37.75436947,2317.0,2315.7,2.74937313]
[1770098349833,4.83668774,2316.7,2315.7,2.74937313]
[1770098350131,4.83668774,2316.9,2315.7,2.74937313]
[1770098350433,4.72560177,2316.9,2315.7,2.74937313]
[1770098350633,9.46241998,2316.9,2315.7,2.75391805]
[1770098351436,47.21678945,2316.9,2315.7,0.22066492]
[1770098352333,9.46241998,2316.9,2315.7,0.22066492]
[1770098353437,47.21678945,2316.9,2315.7,0.22066492]
[1770098354236,9.46241998,2316.9,2315.7,0.22066492]
[1770098354537,9.46241998,2316.9,2315.9,0.2161]
[1770098355335,18.53841998,2316.9,2315.9,2.74935313]
[1770098356131,18.53841998,2316.9,2315.7,0.00454492]
[1770098356132,9.46241998,2316.9,2316.2,0.21607]
[1770098357139,9.46241998,2316.9,2316.3,0.21606]
[1770098359129,9.46241998,2316.9,2316.0,2.53325313]
[1770098359327,9.46241998,2316.9,2316.0,2.74934313]
[1770098359938,9.46241998,2316.9,2316.2,2.53325313]
[1770098360239,9.46241998,2316.9,2316.4,2.53341599]
[1770098362739,9.46241998,2316.9,2315.7,0.00454492]
[1770098362740,2.68525171,2316.8,2315.7,0.00454492]
[1770098363040,4.6832257,2316.7,2315.7,0.00454492]
[1770098363238,4.6832257,2316.7,2315.9,2.53341599]
[1770098363435,10.68851772,2317.5,2315.9,2.53341599]
[1770098363436,37.75810206,2317.7,2316.4,2.53341599]
[1770098363743,4.58497063,2316.7,2316.2,2.53341599]
[1770098364242,3.20263995,2316.6,2316.2,2.53341599]
[1770098364537,4.85761595,2317.0,2316.0,5.11269414]
[1770098364842,2.55764511,2317.5,2316.0,2.74950599]
[1770098365041,5.76028506,2317.5,2316.1,2.53341599]
[1770098365241,4.64107888,2316.9,2316.1,2.53341599]
[1770098365440,0.65043779,2317.4,2316.1,2.53341599]
[1770098365642,2.55764511,2317.5,2316.1,2.53341599]
[1770098365842,4.64107888,2316.8,2316.1,2.74949599]
[1770098366141,5.76028506,2317.4,2316.1,2.74949599]
[1770098366342,4.90230988,2316.7,2316.1,2.74949599]
[1770098366534,4.90230988,2316.8,2316.1,2.74949599]
[1770098366734,2.55764511,2317.5,2316.1,2.74949599]
[1770098366940,4.90230988,2317.2,2316.1,2.74949599]
[1770098367137,4.90230988,2316.7,2316.1,2.74949599]
[1770098367344,4.76905467,2316.9,2316.1,2.74949599]
[1770098367638,3.20263995,2316.8,2316.1,2.74949599]
[1770098367844,4.89691374,2316.8,2316.1,0.21608]
[1770098368046,3.20263995,2317.3,2316.1,0.21608]
[1770098368248,4.69436611,2317.0,2316.1,0.21608]
[1770098368645,7.89700606,2317.3,2316.1,0.21608]
[1770098368844,4.69436611,2316.9,2316.1,0.21608]
[1770098369347,3.49682945,2317.3,2316.1,0.21608]
[1770098369539,4.50865936,2316.8,2316.1,0.21608]
[1770098369939,1.0370165,2317.2,2316.1,0.21608]
[1770098370144,42.38293351,2329.3,2316.1,0.21608]
[1770098370348,4.61232847,2316.7,2316.1,0.21608]
[1770098370550,3.20263995,2317.3,2316.1,0.21608]
[1770098370841,4.61232847,2316.7,2316.1,0.21608]
[1770098371245,0.8742861,2317.2,2316.1,0.21608]
[1770098371246,5.76028506,2317.3,2316.1,0.21608]
[1770098371449,2.55764511,2317.3,2316.1,0.21608]
[1770098371747,4.87330871,2316.7,2316.1,0.21608]
[1770098372046,0.03823718,2317.2,2316.1,0.21608]
[1770098372348,7.83583245,2316.7,2316.1,2.74949599]
[1770098372747,3.20263995,2316.7,2316.1,2.74949599]
[1770098373648,3.20263995,2316.7,2316.1,0.21608]
[1770098374346,4.78619275,2316.6,2315.8,2.57927815]
[1770098374747,3.20263995,2316.5,2315.7,2.58382307]
[1770098375148,4.78619275,2316.4,2315.7,2.58382307]
[1770098375445,4.78619275,2316.4,2315.7,5.11723906]
[1770098375643,4.78619275,2316.4,2315.8,2.53341599]
[1770098375644,3.20263995,2316.3,2315.8,2.53341599]
[1770098375947,3.20263995,2316.3,2315.9,2.53341599]
[1770098377548,11.65464511,2317.0,2315.9,2.53341599]
[1770098377747,3.20263995,2316.9,2315.9,2.53341599]
[1770098377948,7.89532364,2316.9,2315.9,2.53341599]
[1770098378348,4.69268369,2316.9,2315.9,2.53341599]
[1770098378551,4.69268369,2316.9,2316.0,2.53341599]
[1770098379050,7.2503288,2316.9,2316.0,2.53341599]
[1770098379451,2.55764511,2316.8,2316.0,2.53341599]
[1770098379850,4.94425859,2316.7,2316.0,2.53341599]
[1770098380449,4.94425859,2316.7,2315.8,0.21611]
[1770098380750,3.20263995,2316.6,2315.8,0.21611]
[1770098381150,4.85126875,2316.5,2315.8,0.21611]
[1770098381653,3.20263995,2316.4,2315.8,0.21611]
[1770098381854,3.20263995,2316.4,2315.8,2.74952599]
[1770098383649,4.8042419,2316.3,2315.8,0.21611]
[1770098383957,4.8042419,2316.3,2315.7,0.00454492]
[1770098384152,3.20263995,2316.2,2315.7,0.00454492]
[1770098384854,3.20263995,2316.2,2315.7,2.53796091]
[1770098391357,37.75436947,2316.8,2315.8,5.65190102]
[1770098391563,1.59581218,2316.9,2316.2,2.72546893]
[1770098391860,5.00022284,2316.7,2316.2,2.72546893]
[1770098392160,1.59581218,2316.9,2316.2,2.72546893]
[1770098392662,4.80232584,2316.6,2316.2,2.72546893]
[1770098392962,4.80232584,2316.8,2316.2,2.72546893]
[1770098393257,4.66679367,2316.6,2316.2,2.72546893]
[1770098393653,1.59581218,2316.9,2316.2,2.72546893]
[1770098394060,4.66679367,2316.8,2316.2,2.72546893]
[1770098397461,1.45219245,2316.7,2315.8,8.70567708]
[1770098397662,1.45219245,2316.7,2315.8,2.50939893]
[1770098397863,1.23612245,2316.5,2315.8,2.50939893]
[1770098398258,1.29843974,2316.4,2315.7,0.00454492]
[1770098398662,4.79059436,2316.5,2315.7,2.73005385]
[1770098398963,1.23612245,2316.6,2315.7,2.73005385]
[1770098399163,4.79059436,2316.5,2315.7,2.73005385]
[1770098399864,1.23839116,2316.4,2315.7,0.22065492]
[1770098400160,5.00578719,2316.3,2315.8,8.16467492]
[1770098400364,1.23839116,2316.9,2316.2,2.72546893]
[1770098400762,4.75617041,2316.8,2316.2,2.72546893]
[1770098400965,37.75436947,2317.3,2316.0,2.58513589]
[1770098400966,2.41302144,2317.3,2316.6,2.72542893]
[1770098401465,4.5833161,2317.0,2316.6,0.21603]
[1770098401660,6.99633754,2317.2,2316.6,0.21603]
[1770098401861,2.41302144,2317.2,2316.6,0.21603]
[1770098402162,4.5833161,2317.1,2316.6,0.21603]
[1770098403066,7.00128891,2317.1,2316.6,0.21603]
[1770098403567,2.41797281,2317.1,2316.6,0.21603]
[1770098403762,4.92263127,2317.0,2316.6,0.21603]
[1770098404668,4.92263127,2317.0,2316.7,2.50939893]
[1770098404867,2.41797281,2317.5,2316.7,2.50939893]
[1770098405070,2.41797281,2317.5,2316.6,0.21603]
[1770098405370,2.41801755,2317.3,2316.3,2.58513589]
[1770098405567,2.41801755,2317.3,2316.2,5.09453482]
[1770098405763,2.41801755,2317.1,2316.2,5.09453482]
[1770098405966,2.41801755,2317.1,2316.3,2.50939893]
[1770098406168,4.57842479,2317.0,2316.3,8.3123076]
[1770098406369,4.57842479,2317.0,2316.4,2.50939893]
[1770098406671,2.41801755,2317.3,2316.4,2.72544893]
[1770098406867,2.37236323,2317.7,2316.8,2.50939893]
[1770098407067,2.37236323,2317.7,2316.9,2.50939893]
[1770098407369,2.37236323,2317.7,2316.7,2.58513589]
[1770098407370,4.61744153,2317.5,2317.1,2.50939893]
[1770098407670,0.00373259,2317.7,2317.1,2.50939893]
[1770098408069,4.60162653,2317.6,2317.2,2.72536893]
[1770098408275,5.10023393,2318.5,2317.2,2.72536893]
[1770098408276,2.46230331,2318.6,2317.5,2.50939893]
[1770098408465,2.46230331,2318.6,2317.6,2.50939893]
[1770098408773,2.46230331,2318.2,2317.8,0.21592]
[1770098409269,4.5981378,2318.1,2317.8,0.22107257]
[1770098409571,7.06044111,2318.1,2317.8,0.22107257]
[1770098409772,0.00319079,2318.2,2317.8,0.22107257]
[1770098409971,2.4654941,2318.2,2317.8,0.22107257]
[1770098410172,2.46230331,2318.0,2317.8,0.22107257]
[1770098410368,2.46230331,2318.0,2317.3,0.21597]
[1770098410566,7.10446065,2317.9,2317.3,0.21597]
[1770098410769,7.10446065,2317.9,2317.3,5.85064766]
[1770098410968,2.46230331,2317.9,2317.3,5.85064766]
[1770098411569,2.46230331,2317.9,2317.3,5.85618243]
[1770098412376,2.46230331,2317.9,2317.3,0.22150477]
[1770098412575,2.46230331,2317.7,2317.3,0.22150477]
[1770098412780,4.53213171,2317.8,2317.3,0.22150477]
[1770098412981,2.46230331,2318.0,2317.3,0.22150477]
[1770098413482,2.46230331,2317.8,2317.3,0.22150477]
[1770098415385,2.46230331,2317.6,2317.3,0.22150477]
[1770098416082,2.4654941,2318.2,2317.4,0.21595]
[1770098416384,2.46230331,2318.0,2317.4,0.21595]
[1770098416682,7.37945227,2317.9,2317.4,0.21595]
[1770098416883,7.37945227,2317.9,2317.5,5.65148042]
[1770098417177,4.91714896,2318.0,2317.4,0.21595]
[1770098417383,2.46230331,2318.1,2317.4,0.21595]
[1770098417578,4.93761168,2317.9,2317.4,0.21595]
[1770098417784,4.93761168,2318.0,2317.4,2.72534893]
[1770098417985,2.46230331,2318.1,2317.4,2.72534893]
[1770098418887,2.46230331,2318.1,2317.5,0.21595]
[1770098419088,0.00319079,2318.2,2317.5,0.21595]
[1770098419387,2.46230331,2319.0,2318.0,2.50939893]
[1770098419683,2.46230331,2319.2,2318.4,0.21587]
[1770098419888,2.46230331,2318.8,2318.4,0.21587]
[1770098420286,2.30726748,2318.6,2317.9,0.21591]
[1770098420590,4.69200429,2318.5,2317.9,0.21591]
[1770098420789,2.30726748,2318.4,2317.9,0.21591]
[1770098421392,2.30726748,2318.2,2317.9,0.21591]
[1770098421591,2.30726748,2318.2,2317.4,6.12890353]
[1770098421785,2.30726748,2318.2,2317.4,2.50590353]
[1770098422085,2.30726748,2318.2,2317.3,3.62853477]
[1770098422086,2.30726748,2319.3,2317.6,2.50590353]
[1770098422288,2.30726748,2319.3,2318.3,0.21587]
[1770098422488,4.55655366,2318.5,2318.3,0.21587]
[1770098422791,2.30726748,2318.7,2317.8,5.03790353]
[1770098423188,4.55655366,2318.6,2318.3,0.21587]
[1770098423387,6.86382114,2318.6,2318.3,0.21587]
[1770098423887,0.00522973,2318.7,2318.3,0.21587]
[1770098424294,2.31249721,2318.7,2318.3,0.21587]
[1770098424694,0.00522973,2318.7,2318.3,0.21587]
[1770098426295,0.00522973,2318.7,2318.3,2.72177353]
[1770098427995,2.30726748,2319.2,2318.5,0.21585]
[1770098428293,4.87779858,2319.1,2318.5,0.21585]
[1770098428496,4.87779858,2319.1,2318.6,2.72175353]
[1770098428695,2.30726748,2319.5,2318.6,2.72175353]
[1770098428894,2.30726748,2319.5,2318.8,0.21583]
[1770098429096,2.30726748,2319.3,2318.8,0.21583]
[1770098429492,2.30726748,2319.1,2318.8,0.21583]
[1770098429695,2.30726748,2319.1,2318.3,6.34377353]
[1770098429896,2.30726748,2319.1,2318.3,0.21587]
[1770098430191,2.30726748,2318.9,2318.3,0.21587]
[1770098430498,1.31297136,2318.8,2317.8,2.72182353]
[1770098430690,2.30726748,2318.7,2317.8,2.72182353]
[1770098430891,2.30726748,2318.7,2317.8,8.43997299]
[1770098431091,2.30726748,2318.5,2317.8,0.21592]
[1770098431496,7.05450401,2318.4,2317.8,0.21592]
[1770098431696,2.30726748,2318.3,2317.8,0.21592]
[1770098431997,7.05450401,2318.2,2317.5,2.50590353]
[1770098432399,2.30726748,2318.2,2317.6,5.61782759]
[1770098433198,2.30726748,2318.2,2317.8,0.21592]
[1770098435800,2.30726748,2319.0,2317.8,0.21592]
[1770098435997,2.30726748,2319.0,2317.6,5.61782759]
[1770098435998,2.30726748,2319.0,2318.0,0.2159]
[1770098436198,2.30726748,2318.9,2318.0,0.2159]
[1770098436700,2.30726748,2318.7,2318.0,0.2159]
[1770098436896,2.30726748,2318.7,2318.0,2.72180353]
[1770098437099,2.30726748,2318.7,2318.0,0.2159]
[1770098437297,2.30726748,2318.5,2318.0,0.2159]
[1770098440501,2.30726748,2318.3,2317.5,2.58513589]
[1770098441000,2.30726748,2318.3,2317.5,8.39598156]
[1770098441200,2.30726748,2318.3,2317.6,0.21594]
[1770098442099,2.30726748,2318.3,2317.6,2.72184353]
[1770098442294,2.30726748,2318.3,2317.7,0.21593]
[1770098442495,2.30726748,2318.6,2317.9,0.2159]
[1770098442798,4.83129221,2318.5,2317.9,0.2159]
[1770098442995,2.30726748,2318.4,2317.9,0.2159]
[1770098453514,2.30726748,2318.4,2317.7,2.58108925]
[1770098453715,2.38788955,2318.2,2317.5,2.58108925]
[1770098454022,2.38788955,2318.0,2317.4,2.79704925]
[1770098454314,2.38788955,2318.0,2317.4,0.21596]
[1770098454517,4.4979973,2317.9,2317.4,0.21596]
[1770098454715,2.38788955,2317.8,2317.4,0.21596]
[1770098454916,2.39161363,2317.8,2317.4,0.21596]
[1770098458718,2.38788955,2318.1,2317.5,0.21595]
[1770098459321,2.38788955,2318.1,2317.6,0.21594]
[1770098459717,2.39131298,2318.1,2317.6,0.21594]
[1770098461023,2.39131298,2318.1,2317.4,8.20418747]
[1770098461024,2.39131298,2318.1,2317.4,2.58108925]
[1770098461224,2.38788955,2317.9,2317.4,2.58108925]
[1770098462919,2.38788955,2317.7,2317.3,0.00553477]
[1770098463325,7.23628533,2317.6,2317.3,0.00553477]
[1770098463824,2.38788955,2317.6,2317.1,7.78263349]
[1770098464626,2.38788955,2317.6,2317.1,7.78712014]
[1770098464823,2.38788955,2317.6,2317.1,0.22047665]
[1770098465127,2.38788955,2317.4,2316.7,7.57764349]
[1770098465525,4.75050179,2317.3,2316.7,7.79366349]
[1770098466029,4.75050179,2317.3,2316.7,7.79674831]
[1770098466430,4.75050179,2317.3,2316.7,3.91810482]
[1770098467725,2.38788955,2317.4,2316.7,6.21624038]
[1770098467924,2.38788955,2317.9,2316.8,2.29813556]
[1770098468425,2.38788955,2317.9,2316.7,3.91810482]
[1770098468426,2.38788955,2317.8,2317.1,2.29813556]
[1770098468632,2.38788955,2317.8,2317.1,2.51412556]
[1770098468931,0.00342343,2318.1,2317.1,0.21599]
[1770098468932,2.38788955,2317.6,2317.1,0.21599]
[1770098469332,2.38788955,2317.4,2317.1,0.21599]
[1770098469533,2.38788955,2317.4,2316.9,3.712]
[1770098470026,2.38788955,2318.0,2316.9,6.01013556]
[1770098470428,2.38788955,2317.9,2317.0,2.29813556]
[1770098470831,7.31614304,2317.8,2317.0,2.29813556]
[1770098471130,2.38788955,2317.8,2317.1,0.21599]
[1770098471535,4.92825349,2317.7,2317.1,0.21599]
[1770098471835,7.31614304,2317.7,2317.1,0.21599]
[1770098472134,2.38788955,2317.7,2317.1,0.21599]
[1770098472436,4.58770702,2317.6,2317.1,0.21599]
[1770098472733,6.97559657,2317.6,2317.1,2.51412556]
[1770098472933,4.58770702,2317.6,2317.1,2.51412556]
[1770098473435,6.97559657,2317.6,2317.1,0.21599]
[1770098473937,2.38788955,2317.5,2317.1,0.21599]
[1770098474831,2.38788955,2317.5,2316.9,6.01013556]
[1770098474832,2.38788955,2317.5,2316.9,3.712]
[1770098475030,2.38788955,2317.3,2316.9,3.712]
[1770098475433,2.38788955,2317.6,2317.0,2.29813556]
[1770098475835,4.65695159,2317.5,2317.0,2.29813556]
[1770098476135,4.65695159,2317.5,2317.1,0.21599]
[1770098476437,2.38788955,2317.6,2317.1,0.21599]
[1770098477936,2.38788955,2317.4,2317.1,0.21599]
[1770098478128,4.6823756,2317.5,2317.1,0.21599]
[1770098478328,2.38788955,2317.8,2317.1,2.51412556]
[1770098478836,4.53782556,2317.6,2317.1,2.51412556]
[1770098479036,4.53782556,2317.7,2317.3,1.73962413]
[1770098479238,2.39131298,2318.1,2317.3,1.73962413]
[1770098479239,2.39131298,2318.1,2317.3,4.03775969]
[1770098479437,2.39131298,2318.1,2317.3,2.29813556]
[1770098479737,6.89031116,2318.0,2317.3,2.29813556]
[1770098480137,2.48796582,2317.9,2317.4,0.21596]
[1770098480735,2.49138925,2318.1,2317.4,2.63168383]
[1770098481135,6.99282571,2318.0,2317.4,0.21596]
[1770098481736,2.48796582,2317.9,2316.9,3.87864349]
[1770098482037,7.4184276,2317.8,2317.0,0.216]
[1770098482237,2.48796582,2317.7,2317.0,0.216]
[1770098482446,2.48796582,2317.7,2317.0,4.09464349]
[1770098484641,2.48796582,2317.9,2317.1,2.63170383]
[1770098485042,4.55688506,2317.8,2317.1,2.63170383]
[1770098488548,4.55688506,2317.8,2317.2,2.63170383]
[1770098488746,4.55688506,2317.8,2317.4,2.41572383]
[1770098489146,5.05833161,2318.1,2317.4,2.41572383]
[1770098489348,0.00342343,2318.1,2317.7,2.63165383]
[1770098489847,5.05490818,2318.8,2318.0,2.63162383]
[1770098490248,2.48796582,2318.4,2318.0,0.2159]
[1770098490842,0.00439496,2318.4,2318.0,0.2159]
[1770098491146,0.00439496,2318.4,2318.0,2.63162383]
[1770098491946,2.48796582,2319.0,2318.2,2.63160383]
[1770098492147,2.48796582,2319.0,2318.2,2.41572383]
[1770098492350,4.72107517,2318.9,2318.2,2.41572383]
[1770098492550,2.48796582,2319.5,2318.4,2.41572383]
[1770098492752,2.48796582,2319.5,2318.5,2.41572383]
[1770098492949,4.66117783,2319.4,2318.6,2.41572383]
[1770098493251,2.48796582,2319.3,2318.7,0.21584]
[1770098493550,7.13956549,2319.2,2318.7,0.21584]
[1770098493852,11.39942066,2319.2,2318.7,0.21584]
[1770098494150,4.25985517,2319.1,2318.7,0.21584]
[1770098494452,4.25985517,2319.1,2318.1,7.79673676]
[1770098494453,6.74782099,2318.8,2318.1,2.63161383]
[1770098494649,2.48796582,2318.8,2317.7,0.21592]
[1770098494846,2.48796582,2318.5,2317.7,0.21592]
[1770098495050,2.48796582,2318.5,2317.3,2.41572383]
[1770098495251,2.48796582,2318.3,2317.3,2.41572383]
[1770098495548,4.89835662,2318.2,2317.3,2.42089533]
[1770098495748,7.38632244,2318.2,2317.3,2.42089533]
[1770098495949,2.48796582,2318.1,2317.3,2.42089533]
[1770098499056,6.74782099,2317.9,2317.3,0.0051715]
[1770098499353,4.61303065,2317.8,2317.3,0.0051715]
[1770098499651,11.36580799,2317.8,2317.3,0.0051715]
[1770098499852,4.25985517,2317.7,2317.3,0.0051715]
[1770098500054,2.48796582,2317.7,2317.2,0.21598]
[1770098500254,6.74782099,2317.6,2317.2,0.21598]
[1770098500454,6.74782099,2317.5,2316.7,2.63174383]
[1770098500655,2.48796582,2317.5,2316.7,2.63174383]
[1770098500851,7.32808365,2317.4,2316.7,2.63174383]
[1770098501057,7.32808365,2317.4,2316.7,0.22070268]
[1770098501058,6.74782099,2317.3,2316.7,0.22070268]
[1770098501255,6.74782099,2317.2,2316.7,0.22070268]
[1770098501558,11.58793882,2317.2,2316.7,0.22070268]
[1770098501757,4.25985517,2317.1,2316.7,0.22070268]
[1770098502356,6.74782099,2317.1,2316.7,0.22070268]
[1770098502556,4.25985517,2317.0,2316.7,0.22070268]
[1770098503156,4.25985517,2317.0,2316.1,10.8735752]
[1770098503157,4.25985517,2316.8,2316.1,2.63179383]
[1770098503359,2.48796582,2316.9,2316.1,2.63179383]
[1770098504260,2.48796582,2316.9,2316.1,2.63536749]
[1770098505559,2.48796582,2316.9,2313.8,12.97952827]
[1770098505560,2.48796582,2316.2,2315.4,2.41572383]
[1770098505854,4.25985517,2316.2,2315.6,2.63184383]
[1770098506051,4.72275079,2316.1,2315.6,2.63184383]
[1770098506358,8.98260596,2316.1,2315.6,2.63184383]
[1770098506558,4.25985517,2316.0,2315.6,2.63637535]
[1770098506959,2.48796582,2316.7,2315.9,2.63182383]
[1770098507156,2.48796582,2317.2,2316.3,2.41572383]
[1770098507356,4.65780023,2317.1,2316.4,2.41572383]
[1770098507563,7.14576605,2317.5,2316.7,2.41572383]
[1770098507754,2.48796582,2317.5,2316.7,2.63174383]
[1770098507955,0.00456384,2317.5,2317.0,2.63171383]
[1770098508759,2.48796582,2318.0,2317.0,2.63171383]
[1770098508953,3.79887517,2317.8,2317.0,2.63171383]
[1770098509155,6.28684099,2317.8,2317.0,2.63171383]
[1770098509362,4.9532499,2317.7,2317.1,2.63170383]
[1770098509560,0.00369736,2317.7,2317.1,2.63170383]
[1770098509761,3.79887517,2317.6,2317.1,2.63170383]
[1770098511561,2.34749499,2317.5,2317.1,0.21598]
[1770098511760,3.79887517,2317.5,2317.1,2.51236587]
[1770098511959,3.79887517,2317.4,2317.1,2.51236587]
[1770098512159,3.79887517,2317.5,2317.1,2.51236587]
[1770098512661,3.79887517,2317.4,2317.1,2.51236587]
[1770098512861,3.79887517,2317.6,2317.1,2.51236587]
[1770098513261,3.79887517,2317.5,2317.1,2.51236587]
[1770098513463,3.79887517,2317.2,2316.5,2.29638587]
[1770098513663,2.34749499,2317.4,2316.7,2.29638587]
[1770098513868,3.79887517,2317.3,2316.7,8.02780318]
[1770098514064,3.79887517,2317.2,2316.7,2.29638587]
[1770098514565,3.79887517,2316.9,2316.6,0.21603]
[1770098514756,8.39184722,2317.1,2316.6,2.51241587]
[1770098514961,2.34749499,2317.4,2316.6,2.51241587]
[1770098515163,3.79887517,2317.1,2316.6,0.21603]
[1770098515364,3.79887517,2317.1,2316.6,2.51241587]
[1770098515668,2.35119235,2317.7,2316.7,2.51240587]
[1770098516164,3.79887517,2317.4,2316.7,2.51240587]
[1770098516359,6.14637016,2317.5,2316.7,2.51240587]
[1770098516565,6.14637016,2317.4,2316.7,0.21602]
[1770098516766,6.85351961,2317.4,2316.7,0.21602]
[1770098517067,3.79887517,2317.3,2316.7,0.21602]
[1770098517566,3.79887517,2317.0,2316.7,0.21602]
[1770098517768,8.30489979,2317.2,2316.7,0.21602]
[1770098517965,3.79887517,2316.9,2316.7,0.21602]
[1770098518261,3.79887517,2317.0,2316.4,2.29638587]
[1770098518466,3.79887517,2317.1,2316.4,2.29638587]
[1770098518766,3.79887517,2317.0,2316.4,2.29638587]
[1770098519065,3.79887517,2317.1,2316.4,2.29638587]
[1770098519265,3.79887517,2317.1,2316.7,0.21602]
[1770098519466,3.79887517,2317.0,2316.7,0.21602]
[1770098519765,3.79887517,2316.9,2316.4,2.29638587]
[1770098519963,3.79887517,2317.0,2316.4,2.29638587]
[1770098520163,3.79887517,2317.0,2316.7,0.21602]
[1770098520358,3.79887517,2316.9,2316.7,0.21602]
[1770098520561,3.79887517,2316.9,2316.4,2.29638587]
[1770098522167,3.79887517,2316.9,2316.7,0.21602]
[1770098522367,2.34749499,2317.2,2316.4,2.29638587]
[1770098522368,3.79887517,2316.8,2316.4,2.29638587]
[1770098522567,3.79887517,2317.0,2316.7,0.21602]
[1770098522960,3.79887517,2317.0,2316.2,2.57053846]
[1770098522961,3.79887517,2316.8,2316.2,0.21607]
[1770098523370,6.92199853,2316.7,2316.2,0.21607]
[1770098523869,3.79887517,2316.5,2316.2,0.21607]
[1770098524263,3.79887517,2316.4,2316.2,0.21607]
[1770098524568,2.34749499,2317.2,2316.4,2.29638587]
[1770098524768,6.14637016,2317.2,2316.4,2.51243587]
[1770098524970,3.79887517,2316.8,2316.4,2.51243587]
[1770098525467,3.79887517,2316.6,2316.4,2.51243587]
[1770098525664,6.14637016,2316.8,2316.4,0.21605]
[1770098525865,2.34749499,2316.8,2316.4,0.21605]